fUST/lending_fUST_20250206
["ID","MTS","AMOUNT","RATE_DAILY","PERIOD"]
[351770654,1738782646710,-500.0,0.00014623,2]
[351770656,1738782646720,-500.0,0.00014623,2]
[351770658,1738782646729,-500.0,0.00014623,2]
[351770660,1738782646739,-500.0,0.00014623,2]
[351770662,1738782646751,-500.0,0.00014623,2]
[351770665,1738782646761,-798.28,0.00014623,2]
[351770666,1738782646773,-500.0,0.00014623,2]
[351770669,1738782646782,-500.0,0.00014623,2]
[351770671,1738782646791,-690.64,0.00014623,2]
[351770672,1738782646800,-500.0,0.00014623,2]
[351770674,1738782646810,-500.0,0.00014623,2]
[351770677,1738782646819,-1208.32,0.00014623,2]
[351770679,1738782646829,-599.9,0.00014623,2]
[351770681,1738782646838,-500.0,0.00014623,2]
[351770683,1738782646848,-500.0,0.00014623,2]
[351770685,1738782646858,-500.0,0.00014623,2]
[351770687,1738782646868,-500.0,0.00014623,2]
[351770689,1738782646878,-955.92,0.00014623,2]
[351770691,1738782646888,-500.0,0.00014623,2]
[351770693,1738782646899,-500.0,0.00014623,2]
[351770695,1738782646908,-500.0,0.00014623,2]
[351770697,1738782646918,-500.0,0.00014623,2]
[351770699,1738782646928,-500.0,0.00014623,2]
[351770701,1738782646939,-551.76,0.00014623,2]
[351770703,1738782646950,-500.0,0.00014623,2]
[351770705,1738782646961,-500.0,0.00014623,2]
[351770707,1738782646970,-500.0,0.00014623,2]
[351770709,1738782646980,-1000.0,0.00014623,2]
[351770711,1738782646992,-500.0,0.00014623,2]
[351770713,1738782647002,-500.0,0.00014623,2]
[351770715,1738782647011,-728.64,0.00014623,2]
[351770717,1738782647022,-500.0,0.00014623,2]
[351770719,1738782647034,-500.0,0.00014623,2]
[351770721,1738782647044,-827.14,0.00014623,2]
[351770723,1738782647055,-500.0,0.00014623,2]
[351770725,1738782647065,-1745.9,0.00014623,2]
[351770727,1738782647075,-500.0,0.00014623,2]
[351770729,1738782647085,-655.29,0.00014623,2]
[351770731,1738782647095,-500.0,0.00014623,2]
[351770733,1738782647105,-500.0,0.00014623,2]
[351770735,1738782647114,-500.0,0.00014623,2]
[351770737,1738782647125,-311.54707333,0.00014623,2]
[351770739,1738782647135,-188.0,0.00014623,2]
[351770742,1738782647145,-500.0,0.00014623,2]
[351770743,1738782647158,-460.53401954,0.00014623,2]
[351770745,1738782647169,-1597.54,0.00014623,2]
[351770747,1738782647179,-505.61923189,0.00014623,2]
[351770748,1738782647190,-500.0,0.00014623,2]
[351770750,1738782647200,-500.0,0.00014623,2]
[351770752,1738782647210,-500.0,0.00014623,2]
[351770754,1738782647221,-505.7492854,0.00014623,2]
[351770756,1738782647231,-500.0,0.00014623,2]
[351770757,1738782647241,-500.0,0.00014623,2]
[351770759,1738782647252,-500.0,0.00014623,2]
[351770761,1738782647262,-500.0,0.00014623,2]
[351770763,1738782647272,-503.49486909,0.00014623,2]
[351770764,1738782647282,-500.0,0.00014623,2]
[351770766,1738782647292,-597.13142421,0.00014623,2]
[351770768,1738782647303,-500.0,0.00014623,2]
[351770770,1738782647314,-500.0,0.00014623,2]
[351770771,1738782647325,-863.56,0.00014623,2]
[351770773,1738782647335,-500.0,0.00014623,2]
[351770775,1738782647345,-500.0,0.00014623,2]
[351770777,1738782647355,-500.0,0.00014623,2]
[351770778,1738782647365,-500.0,0.00014623,2]
[351770780,1738782647375,-500.0,0.00014623,2]
[351770782,1738782647385,-505.19265801,0.00014623,2]
[351770784,1738782647395,-500.0,0.00014623,2]
[351770785,1738782647405,-300.0,0.00014623,2]
[351770787,1738782647415,-500.0,0.00014623,2]
[351770789,1738782647425,-1048.16,0.00014623,2]
[351770790,1738782647435,-580.11,0.00014623,2]
[351770792,1738782647446,-503.16944459,0.00014623,2]
[351770794,1738782647455,-500.0,0.00014623,2]
[351770796,1738782647466,-500.0,0.00014623,2]
[351770797,1738782647477,-500.0,0.00014623,2]
[351770799,1738782647487,-500.0,0.00014623,2]
[351770801,1738782647497,-500.0,0.00014623,2]
[351770803,1738782647508,-500.0,0.00014623,2]
[351770804,1738782647518,-500.0,0.00014623,2]
[351770806,1738782647529,-439.00348576,0.00014623,2]
[351770808,1738782647539,-500.0,0.00014623,2]
[351770810,1738782647549,-531.97,0.00014623,2]
[351770811,1738782647559,-500.0,0.00014623,2]
[351770813,1738782647570,-500.0,0.00014623,2]
[351770815,1738782647580,-500.0,0.00014623,2]
[351770816,1738782647591,-500.0,0.00014623,2]
[351770818,1738782647601,-500.0,0.00014623,2]
[351770820,1738782647611,-301.81898632,0.00014623,2]
[351770822,1738782647622,-500.0,0.00014623,2]
[351770824,1738782647633,-500.0,0.00014623,2]
[351770826,1738782647643,-500.0,0.00014623,2]
[351770828,1738782647654,-500.0,0.00014623,2]
[351770829,1738782647666,-563.28,0.00014623,2]
[351770831,1738782647676,-500.0,0.00014623,2]
[351770833,1738782647687,-500.0,0.00014623,2]
[351770835,1738782647697,-1008.57,0.00014623,2]
[351770836,1738782647708,-711.15,0.00014623,2]
[351770838,1738782647718,-1574.79,0.00014623,2]
[351770840,1738782647729,-505.74199132,0.00014623,2]
[351770842,1738782647740,-500.0,0.00014623,2]
[351770844,1738782647750,-624.3,0.00014623,2]
[351770846,1738782647761,-500.0,0.00014623,2]
[351770848,1738782647773,-668.93,0.00014623,2]
[351770850,1738782647784,-519.75081571,0.00014623,2]
[351770852,1738782647795,-500.0,0.00014623,2]
[351770853,1738782647804,-1001.23,0.00014623,2]
[351770855,1738782647813,-500.0,0.00014623,2]
[351770857,1738782647823,-500.0,0.00014623,2]
[351770859,1738782647834,-500.0,0.00014623,2]
[351770861,1738782647843,-685.2,0.00014623,2]
[351770863,1738782647853,-978.41,0.00014623,2]
[351770864,1738782647864,-771.32,0.00014623,2]
[351770866,1738782647874,-500.0,0.00014623,2]
[351770868,1738782647885,-1000.0,0.00014623,2]
[351770870,1738782647896,-500.0,0.00014623,2]
[351770871,1738782647906,-500.0,0.00014623,2]
[351770873,1738782647917,-500.0,0.00014623,2]
[351770875,1738782647928,-500.0,0.00014623,2]
[351770876,1738782647939,-500.0,0.00014623,2]
[351770878,1738782647952,-500.0,0.00014623,2]
[351770880,1738782647962,-501.34143529,0.00014623,2]
[351770882,1738782647972,-500.0,0.00014623,2]
[351770884,1738782647983,-502.42819887,0.00014623,2]
[351770885,1738782647994,-958.73,0.00014623,2]
[351770887,1738782648004,-500.0,0.00014623,2]
[351770889,1738782648017,-500.0,0.00014623,2]
[351770891,1738782648028,-501.14780937,0.00014623,2]
[351770892,1738782648039,-204.98644075,0.00014623,2]
[351770895,1738782648062,-504.22762215,0.00014623,2]
[351770897,1738782648075,-500.0,0.00014623,2]
[351770899,1738782648087,-977.43,0.00014623,2]
[351770901,1738782648098,-500.0,0.00014623,2]
[351770903,1738782648110,-500.0,0.00014623,2]
[351770905,1738782648121,-1374.79,0.00014623,2]
[351770906,1738782648132,-500.0,0.00014623,2]
[351770908,1738782648142,-500.0,0.00014623,2]
[351770910,1738782648152,-500.0,0.00014623,2]
[351770912,1738782648163,-503.64867428,0.00014623,2]
[351770914,1738782648173,-500.0,0.00014623,2]
[351770916,1738782648184,-715.54,0.00014623,2]
[351770917,1738782648194,-500.0,0.00014623,2]
[351770919,1738782648205,-500.0,0.00014623,2]
[351770921,1738782648215,-280.72192247,0.00014623,2]
[351770923,1738782648225,-501.55642339,0.00014623,2]
[351770925,1738782648236,-500.0,0.00014623,2]
[351770927,1738782648246,-500.0,0.00014623,2]
[351770929,1738782648256,-500.0,0.00014623,2]
[351770931,1738782648267,-500.0,0.00014623,2]
[351770932,1738782648278,-530.8,0.00014623,2]
[351770934,1738782648288,-365.384098,0.00014623,2]
[351770936,1738782648299,-365.384098,0.00014623,2]
[351770938,1738782648309,-500.0,0.00014623,2]
[351770940,1738782648321,-500.0,0.00014623,2]
[351770942,1738782648332,-500.0,0.00014623,2]
[351770943,1738782648343,-500.0,0.00014623,2]
[351770945,1738782648354,-500.0,0.00014623,2]
[351770947,1738782648366,-151.0,0.00014623,2]
[351770949,1738782648377,-477.23054919,0.00014624,2]
[351770951,1738782648388,-433.10663248,0.00014624,2]
[351770953,1738782648400,-517.83673803,0.00014624,2]
[351770955,1738782648410,-500.0,0.00014624,2]
[351770956,1738782648421,-500.0,0.00014624,2]
[351770958,1738782648432,-3850.29,0.00014624,2]
[351770960,1738782648443,-1211.1,0.00014624,2]
[351770962,1738782648456,-500.0,0.00014672,2]
[351770964,1738782648467,-500.0,0.00014673,2]
[351770966,1738782648478,-493.93833945,0.00014673,2]
[351770968,1738782648489,-500.0,0.00014673,2]
[351770970,1738782648502,-500.0,0.00014673,2]
[351770971,1738782648517,-500.0,0.00014673,2]
[351770973,1738782648528,-250.41805391,0.00014673,2]
[351770975,1738782648539,-500.0,0.00014673,2]
[351770977,1738782648551,-500.37266573,0.00014673,2]
[351770979,1738782648561,-500.0,0.00014673,2]
[351770981,1738782648571,-7820.82,0.00014673,2]
[351770983,1738782648582,-631.88,0.00014673,2]
[351770984,1738782648593,-500.0,0.00014673,2]
[351770986,1738782648604,-559.36,0.00014673,2]
[351770988,1738782648615,-500.0,0.00014673,2]
[351770990,1738782648628,-5368.07,0.00014673,2]
[351770992,1738782648639,-500.0,0.00014673,2]
[351770994,1738782648650,-3030.39,0.00014673,2]
[351771008,1738782648812,-13862.88,0.00014673,2]
[351771010,1738782648834,-2574.47,0.00014673,2]
[351771012,1738782648845,-558.47,0.00014673,2]
[351771013,1738782648854,-1051.25,0.00014673,2]
[351771015,1738782648865,-500.0,0.00014673,2]
[351771017,1738782648875,-5494.71,0.00014673,2]
[351771019,1738782648885,-500.0,0.00014673,2]
[351771021,1738782648895,-768.96,0.00014673,2]
[351771022,1738782648905,-6936.46,0.00014673,2]
[351771024,1738782648916,-1973.67,0.00014673,2]
[351771026,1738782648928,-2795.66,0.00014673,2]
[351771028,1738782648938,-500.0,0.00014673,2]
[351771030,1738782648951,-500.0,0.00014673,2]
[351771032,1738782648961,-7054.0,0.00014673,2]
[351771033,1738782648971,-1081.49,0.00014673,2]
[351771035,1738782648981,-12159.71,0.00014673,2]
[351771037,1738782648993,-500.0,0.00014673,2]
[351771039,1738782649004,-972.35,0.00014673,2]
[351771041,1738782649017,-500.0,0.00014673,2]
[351771043,1738782649027,-3065.8,0.00014673,2]
[351771044,1738782649038,-580.41,0.00014673,2]
[351771046,1738782649049,-919.05,0.00014673,2]
[351771048,1738782649059,-685.61,0.00014673,2]
[351771051,1738782649069,-500.0,0.00014673,2]
[351771053,1738782649080,-2800.06,0.00014673,2]
[351771055,1738782649089,-153.0,0.00014688,2]
[351771057,1738782649099,-153.0,0.00014688,2]
[351771058,1738782649109,-153.0,0.00014688,2]
[351771060,1738782649119,-153.0,0.00014688,2]
[351771062,1738782649129,-153.0,0.00014688,2]
[351771064,1738782649139,-153.0,0.00014688,2]
[351771066,1738782649148,-153.0,0.00014688,2]
[351771068,1738782649158,-153.0,0.00014688,2]
[351771070,1738782649169,-153.0,0.00014688,2]
[351771072,1738782649178,-153.0,0.00014688,2]
[351771074,1738782649188,-153.0,0.00014688,2]
[351771077,1738782649199,-153.0,0.00014688,2]
[351771078,1738782649209,-153.0,0.00014688,2]
[351771080,1738782649219,-153.0,0.00014688,2]
[351771083,1738782649230,-153.0,0.00014688,2]
[351771085,1738782649240,-153.0,0.00014688,2]
[351771086,1738782649250,-153.0,0.00014688,2]
[351771088,1738782649259,-153.0,0.00014688,2]
[351771090,1738782649270,-153.0,0.00014688,2]
[351771092,1738782649280,-153.0,0.00014688,2]
[351771094,1738782649289,-153.0,0.00014688,2]
[351771096,1738782649299,-153.0,0.00014688,2]
[351771098,1738782649309,-153.0,0.00014688,2]
[351771100,1738782649322,-153.0,0.00014688,2]
[351771103,1738782649338,-153.0,0.00014688,2]
[351771105,1738782649348,-153.0,0.00014688,2]
[351771107,1738782649358,-191.1480875,0.000147,2]
[351771109,1738782649369,-153.0,0.000147,2]
[351771111,1738782649378,-153.0,0.000147,2]
[351771112,1738782649388,-154.4720971,0.000147,2]
[351771113,1738782649399,-153.0,0.000147,2]
[351771114,1738782649408,-215.7177124,0.000147,2]
[351771115,1738782649419,-309.0303312,0.000147,2]
[351771116,1738782649431,-312.5996199,0.000147,2]
[351771117,1738782649444,-354.6451938,0.000147,2]
[351771118,1738782649454,-215.7177124,0.000147,2]
[351771119,1738782649467,-354.6451938,0.000147,2]
[351771120,1738782649477,-153.0,0.000147,2]
[351771121,1738782649487,-680.6,0.00014757,2]
[351771122,1738782649496,-1047.32,0.00014757,2]
[351771123,1738782649506,-500.0,0.00014757,2]
[351771124,1738782649516,-500.0,0.00014757,2]
[351771125,1738782649527,-500.0,0.00014757,2]
[351771126,1738782649538,-500.0,0.00014757,2]
[351771127,1738782649548,-500.0,0.00014757,2]
[351771128,1738782649559,-2739.3,0.00014757,2]
[351771129,1738782649569,-500.0,0.00014757,2]
[351771130,1738782649579,-500.0,0.00014757,2]
[351771131,1738782649589,-500.0,0.00014757,2]
[351771132,1738782649599,-500.0,0.00014757,2]
[351771133,1738782649609,-500.0,0.00014757,2]
[351771134,1738782649619,-500.0,0.00014757,2]
[351771135,1738782649631,-536.4,0.00014757,2]
[351771136,1738782649641,-500.0,0.00014757,2]
[351771137,1738782649651,-404.37488654,0.00014757,2]
[351771138,1738782649662,-2050.54,0.00014757,2]
[351771139,1738782649672,-500.0,0.00014757,2]
[351771140,1738782649681,-503.73,0.00014757,2]
[351771142,1738782649691,-941.85,0.00014757,2]
[351771143,1738782649701,-500.0,0.00014757,2]
[351771144,1738782649710,-500.0,0.00014757,2]
[351771146,1738782649720,-500.0,0.00014757,2]
[351771147,1738782649730,-1007.14,0.00014757,2]
[351771149,1738782649740,-500.0,0.00014757,2]
[351771151,1738782649749,-533.81,0.00014757,2]
[351771153,1738782649759,-500.0,0.00014757,2]
[351771155,1738782649769,-1389.66,0.00014757,2]
[351771157,1738782649778,-500.0,0.00014757,2]
[351771159,1738782649788,-500.0,0.00014757,2]
[351771161,1738782649798,-500.0,0.00014757,2]
[351771163,1738782649809,-500.0,0.00014757,2]
[351771165,1738782649819,-2576.63,0.00014757,2]
[351771167,1738782649829,-500.0,0.00014757,2]
[351771169,1738782649839,-500.0,0.00014757,2]
[351771171,1738782649848,-1014.65,0.00014757,2]
[351771174,1738782649858,-641.36,0.00014757,2]
[351771176,1738782649867,-500.0,0.00014757,2]
[351771178,1738782649877,-702.61,0.00014757,2]
[351771179,1738782649888,-1727.46,0.00014757,2]
[351771181,1738782649899,-500.0,0.00014757,2]
[351771183,1738782649908,-500.0,0.00014757,2]
[351771185,1738782649918,-1568.18,0.00014757,2]
[351771187,1738782649928,-500.0,0.00014757,2]
[351771189,1738782649938,-500.0,0.00014757,2]
[351771191,1738782649951,-500.0,0.00014757,2]
[351771193,1738782649961,-500.0,0.00014757,2]
[351771195,1738782649970,-500.0,0.00014757,2]
[351771197,1738782649980,-775.96,0.00014757,2]
[351771199,1738782649991,-500.0,0.00014757,2]
[351771201,1738782650001,-1677.13,0.00014757,2]
[351771203,1738782650011,-172.24545994,0.00014757,2]
[351771205,1738782650020,-879.06,0.00014757,2]
[351771207,1738782650030,-500.0,0.00014757,2]
[351771209,1738782650041,-1956.72,0.00014757,2]
[351771211,1738782650050,-478.71653944,0.00014757,2]
[351771213,1738782650059,-500.0,0.00014757,2]
[351771215,1738782650069,-1495.36,0.00014757,2]
[351771217,1738782650079,-705.83,0.00014757,2]
[351771219,1738782650088,-534.65,0.00014757,2]
[351771221,1738782650098,-500.0,0.00014757,2]
[351771223,1738782650107,-500.0,0.00014757,2]
[351771225,1738782650117,-500.0,0.00014757,2]
[351771227,1738782650127,-617.64,0.00014757,2]
[351771229,1738782650137,-475.30633217,0.00014757,2]
[351771231,1738782650147,-492.00233006,0.00014757,2]
[351771233,1738782650157,-1007.56,0.00014757,2]
[351771235,1738782650167,-1163.32,0.00014757,2]
[351771238,1738782650177,-500.0,0.00014757,2]
[351771240,1738782650187,-1926.31,0.00014757,2]
[351771241,1738782650197,-500.0,0.00014757,2]
[351771243,1738782650207,-2479.64,0.00014757,2]
[351771246,1738782650216,-516.45699356,0.00014757,2]
[351771248,1738782650226,-500.0,0.00014757,2]
[351771250,1738782650236,-500.0,0.00014757,2]
[351771251,1738782650245,-680.67,0.00014757,2]
[351771254,1738782650255,-685.07,0.00014757,2]
[351771256,1738782650265,-912.47,0.00014757,2]
[351771258,1738782650275,-768.15,0.00014757,2]
[351771259,1738782650284,-643.89,0.00014757,2]
[351771262,1738782650295,-500.0,0.00014757,2]
[351771264,1738782650305,-500.0,0.00014757,2]
[351771265,1738782650317,-1320.44,0.00014757,2]
[351771268,1738782650326,-500.0,0.00014757,2]
[351771269,1738782650336,-500.0,0.00014757,2]
[351771272,1738782650345,-500.26325349,0.00014757,2]
[351771274,1738782650355,-560.07,0.00014757,2]
[351771275,1738782650364,-500.0,0.00014757,2]
[351771277,1738782650374,-589.25,0.00014757,2]
[351771279,1738782650383,-4304.79,0.00014757,2]
[351771281,1738782650393,-500.0,0.00014757,2]
[351771284,1738782650403,-2960.63,0.00014757,2]
[351771285,1738782650412,-500.0,0.00014757,2]
[351771287,1738782650422,-500.0,0.00014757,2]
[351771289,1738782650432,-500.0,0.00014757,2]
[351771291,1738782650442,-500.0,0.00014757,2]
[351771293,1738782650452,-839.23,0.00014757,2]
[351771295,1738782650461,-500.0,0.00014757,2]
[351771297,1738782650470,-500.0,0.00014757,2]
[351771299,1738782650479,-500.0,0.00014757,2]
[351771301,1738782650488,-500.0,0.00014757,2]
[351771303,1738782650499,-500.0,0.00014757,2]
[351771305,1738782650508,-500.0,0.00014757,2]
[351771307,1738782650518,-2770.74,0.00014757,2]
[351771309,1738782650529,-500.0,0.00014757,2]
[351771312,1738782650538,-500.0,0.00014757,2]
[351771313,1738782650548,-527.02674886,0.00014757,2]
[351771316,1738782650558,-1056.21,0.00014757,2]
[351771318,1738782650568,-500.0,0.00014757,2]
[351771319,1738782650577,-726.98,0.00014757,2]
[351771321,1738782650586,-3867.41,0.00014757,2]
[351771323,1738782650596,-500.0,0.00014757,2]
[351771325,1738782650605,-3094.25,0.00014757,2]
[351771328,1738782650615,-695.53,0.00014757,2]
[351771330,1738782650625,-500.0,0.00014757,2]
[351771332,1738782650641,-500.0,0.00014757,2]
[351771334,1738782650665,-500.0,0.00014757,2]
[351771346,1738782650779,-500.0,0.00014757,2]
[351771348,1738782650789,-902.89,0.00014757,2]
[351771350,1738782650804,-575.50185589,0.00014757,2]
[351771352,1738782650821,-500.0,0.00014757,2]
[351771354,1738782650832,-500.0,0.00014757,2]
[351771356,1738782650842,-713.65,0.00014757,2]
[351771358,1738782650853,-500.0,0.00014757,2]
[351771360,1738782650863,-534.5336951,0.00014757,2]
[351771362,1738782650874,-500.0,0.00014757,2]
[351771364,1738782650883,-406.96398512,0.00014757,2]
[351771415,1738782651403,-500.0,0.00014483,2]
[351771417,1738782651413,-500.0,0.00014536,2]
[351771419,1738782651422,-500.0,0.0001462,2]
[351771421,1738782651431,-636.49893233,0.00014673,2]
[351771423,1738782651442,-93.03601488,0.00014757,2]
[351771425,1738782651451,-500.0,0.00014757,2]
[351771427,1738782651460,-500.0,0.00014757,2]
[351771429,1738782651470,-74.15143659,0.00014757,2]
[351771432,1738782651490,-500.0,0.00014483,2]
[351771435,1738782651500,-147.4670125,0.00014757,2]
[351771491,1738782652032,-500.0,0.00014483,2]
[351771493,1738782652042,-500.0,0.00014483,2]
[351771495,1738782652051,-500.0,0.00014483,2]
[351771497,1738782652061,-278.38155091,0.00014757,2]
[351771499,1738782652070,-560.15,0.00014757,2]
[351771501,1738782652079,-599.77,0.00014757,2]
[351771503,1738782652088,-635.45962378,0.00014757,2]
[351771505,1738782652099,-1273.55,0.00014757,2]
[351771507,1738782652108,-194.99787331,0.00014757,2]
[351771580,1738782652847,-500.0,0.00014398,2]
[351771582,1738782652857,-500.0,0.00014483,2]
[351771584,1738782652866,-500.0,0.00014483,2]
[351771586,1738782652875,-500.0,0.00014483,2]
[351771588,1738782652885,-610.6,0.00014483,2]
[351771590,1738782652895,-109.4,0.00014483,2]
[351771596,1738782652938,-390.6,0.00014483,2]
[351771598,1738782652949,-500.0,0.0001462,2]
[351771600,1738782652965,-74.7,0.0001462,2]
[351771601,1738782652976,-76.3,0.0001462,2]
[351771602,1738782652986,-500.0,0.0001462,2]
[351771603,1738782652997,-151.0,0.00014621,2]
[351771604,1738782653006,-153.0,0.00014688,2]
[351771605,1738782653015,-153.0,0.00014688,2]
[351771606,1738782653026,-153.0,0.00014688,2]
[351771607,1738782653035,-153.0,0.00014688,2]
[351771608,1738782653045,-333.47212669,0.00014757,2]
[351771609,1738782653055,-906.15,0.00014757,2]
[351771610,1738782653064,-500.0,0.00014757,2]
[351771611,1738782653074,-500.0,0.00014757,2]
[351771612,1738782653084,-652.99,0.00014757,2]
[351771613,1738782653100,-8445.46,0.00014757,2]
[351771614,1738782653115,-1501.63,0.00014757,2]
[351771615,1738782653124,-500.0,0.00014757,2]
[351771617,1738782653134,-1677.82,0.00014757,2]
[351771618,1738782653144,-500.0,0.00014757,2]
[351771620,1738782653154,-635.5,0.00014757,2]
[351771622,1738782653164,-500.0,0.00014757,2]
[351771624,1738782653173,-2896.01,0.00014757,2]
[351771626,1738782653183,-500.0,0.00014757,2]
[351771628,1738782653192,-511.78,0.00014757,2]
[351771629,1738782653201,-500.0,0.00014757,2]
[351771630,1738782653211,-500.0,0.00014757,2]
[351771631,1738782653220,-500.0,0.00014757,2]
[351771632,1738782653231,-1718.43,0.00014757,2]
[351771633,1738782653240,-743.26,0.00014757,2]
[351771634,1738782653249,-500.0,0.00014757,2]
[351771635,1738782653259,-500.0,0.00014757,2]
[351771636,1738782653269,-515.51,0.00014757,2]
[351771637,1738782653280,-500.0,0.00014757,2]
[351771638,1738782653290,-1151.02,0.00014757,2]
[351771639,1738782653299,-1362.74,0.00014757,2]
[351771640,1738782653308,-500.0,0.00014757,2]
[351771641,1738782653318,-500.0,0.00014757,2]
[351771642,1738782653329,-1686.85,0.00014757,2]
[351771643,1738782653339,-500.0,0.00014757,2]
[351771644,1738782653349,-647.52,0.00014757,2]
[351771645,1738782653359,-500.0,0.00014757,2]
[351771646,1738782653369,-562.71,0.00014757,2]
[351771647,1738782653378,-500.0,0.00014757,2]
[351771648,1738782653388,-500.0,0.00014757,2]
[351771649,1738782653398,-500.0,0.00014757,2]
[351771650,1738782653408,-8186.23,0.00014757,2]
[351771651,1738782653418,-500.0,0.00014757,2]
[351771653,1738782653427,-500.0,0.00014757,2]
[351771655,1738782653437,-500.0,0.00014757,2]
[351771657,1738782653446,-987.81,0.00014757,2]
[351771659,1738782653455,-826.85,0.00014757,2]
[351771661,1738782653464,-500.0,0.00014757,2]
[351771663,1738782653474,-500.0,0.00014757,2]
[351771665,1738782653483,-1499.9,0.00014757,2]
[351771667,1738782653492,-500.0,0.00014757,2]
[351771669,1738782653502,-500.0,0.00014757,2]
[351771671,1738782653512,-508.12583092,0.00014757,2]
[351771673,1738782653521,-500.0,0.00014757,2]
[351771675,1738782653537,-500.0,0.00014757,2]
[351771677,1738782653547,-683.63,0.00014757,2]
[351771679,1738782653556,-500.0,0.00014757,2]
[351771680,1738782653567,-500.0,0.00014757,2]
[351771682,1738782653577,-508.1595289,0.00014757,2]
[351771684,1738782653587,-500.0,0.00014757,2]
[351771686,1738782653598,-500.0,0.00014757,2]
[351771687,1738782653608,-2953.29,0.00014757,2]
[351771688,1738782653619,-500.0,0.00014757,2]
[351771689,1738782653628,-500.0,0.00014757,2]
[351771690,1738782653638,-500.0,0.00014757,2]
[351771691,1738782653648,-500.0,0.00014757,2]
[351771692,1738782653657,-559.99,0.00014757,2]
[351771693,1738782653668,-500.0,0.00014757,2]
[351771694,1738782653677,-629.12,0.00014757,2]
[351771695,1738782653687,-500.0,0.00014757,2]
[351771696,1738782653697,-151.0,0.00014758,2]
[351771697,1738782653707,-151.0,0.00014758,2]
[351771698,1738782653717,-151.0,0.00014758,2]
[351771699,1738782653727,-151.0,0.00014758,2]
[351771700,1738782653737,-365.384098,0.00014758,2]
[351771701,1738782653747,-365.384098,0.00014758,2]
[351771702,1738782653757,-151.0,0.00014758,2]
[351771703,1738782653767,-37791.57,0.00014758,2]
[351771704,1738782653781,-3670.64406749,0.00014758,2]
[351772425,1738783013269,319.08114,0.00013973,2]
[351772426,1738783061494,186.924812,0.00013699,2]
[351772431,1738783696742,155.77633146,0.000125,2]
[351772432,1738783710797,276.67403199,0.0001,2]
[351772437,1738783720934,1000.0,0.0001,2]
[351772438,1738783721635,9785.45741802,0.00013,2]
[351772461,1738783832652,-300.0,0.00012999,2]
[351772462,1738783832662,-2091.62254432,0.00013,2]
[351772463,1738783832675,-28074.07745102,0.00013,2]
[351772504,1738783838460,-26694.24810135,0.00013,2]
[351772506,1738783838470,-270.78224713,0.00014114,2]
[351772508,1738783838479,-500.0,0.00014164,2]
[351772510,1738783838489,-420.0,0.00014256,2]
[351772512,1738783838498,-500.0,0.00014316,7]
[351772514,1738783838508,-500.0,0.00014316,7]
[351772516,1738783838518,-500.0,0.00014316,7]
[351772517,1738783838527,-500.0,0.00014316,7]